fUST/lending_fUST_20240705
["ID","MTS","AMOUNT","RATE_DAILY","PERIOD"]
[331257114,1720165842110,-379.04509844,0.00038,120]
[331257115,1720165842119,-153.17115845,0.00038536,7]
[331257116,1720165842129,-154.26185715,0.00038787,7]
[331257117,1720165842139,-1000.0,0.00039,39]
[331257118,1720165842148,-154.83742071,0.00039393,10]
[331257119,1720165842164,-244.670338,0.00039394,2]
[331257120,1720165842173,-224.230914,0.0003999,7]
[331257121,1720165842183,-224.230914,0.0003999,7]
[331257122,1720165842193,-408.924018,0.0003999,7]
[331257123,1720165842202,-408.924018,0.0003999,7]
[331257124,1720165842212,-151.0,0.0003999,7]
[331257125,1720165842221,-274.471517,0.0003999,7]
[331257126,1720165842231,-15546.8315145,0.0003999,5]
[331257127,1720165842240,-151.0,0.0003999,7]
[331257128,1720165842250,-3990.00210664,0.00039999,4]
[331257129,1720165842259,-22995.03952073,0.0004,120]
[331257130,1720165842268,-151.0,0.0004,120]
[331257131,1720165842278,-5018.1,0.0004,40]
[331257132,1720165842287,-151.0,0.0004,120]
[331257133,1720165842298,-25380.23808094,0.0004,120]
[331257134,1720165842308,-30409.38165568,0.0004,30]
[331257135,1720165842318,-190.752613,0.0004,7]
[331257136,1720165842328,-190.752613,0.0004,7]
[331257137,1720165842337,-151.0,0.0004,7]
[331257138,1720165842348,-151.0,0.0004,7]
[331257139,1720165842358,-151.0,0.0004,7]
[331257140,1720165842367,-193.58254,0.0004,7]
[331257141,1720165842377,-193.58254,0.0004,7]
[331257142,1720165842387,-193.58254,0.0004,7]
[331257143,1720165842396,-193.58254,0.0004,7]
[331257144,1720165842409,-151.0,0.0004,7]
[331257145,1720165842418,-151.0,0.0004,7]
[331257146,1720165842428,-151.0,0.0004,7]
[331257147,1720165842438,-151.0,0.0004,7]
[331257148,1720165842449,-151.0,0.0004,7]
[331257149,1720165842459,-151.0,0.0004,7]
[331257150,1720165842470,-151.0,0.0004,7]
[331257151,1720165842481,-224.230914,0.0004,7]
[331257152,1720165842490,-224.230914,0.0004,7]
[331257153,1720165842499,-408.924018,0.0004,7]
[331257154,1720165842509,-408.924018,0.0004,7]
[331257155,1720165842519,-171.422174,0.0004,7]
[331257156,1720165842528,-151.0,0.0004,7]
[331257157,1720165842538,-151.0,0.0004,7]
[331257158,1720165842547,-860.059536,0.0004,7]
[331257159,1720165842556,-860.059536,0.0004,7]
[331257160,1720165842565,-155.480157,0.0004,7]
[331257161,1720165842575,-783.002453,0.0004,7]
[331257162,1720165842584,-783.002453,0.0004,7]
[331257163,1720165842595,-389.484064,0.0004,7]
[331257164,1720165842604,-389.484064,0.0004,7]
[331257165,1720165842614,-151.0,0.0004,7]
[331257166,1720165842624,-151.0,0.0004,7]
[331257167,1720165842633,-151.0,0.0004,7]
[331257168,1720165842644,-261.351514,0.0004,7]
[331257169,1720165842653,-2257.383542,0.0004,7]
[331257170,1720165842665,-151.0,0.0004,7]
[331257171,1720165842675,-261.351514,0.0004,7]
[331257172,1720165842684,-151.0,0.0004,7]
[331257173,1720165842695,-2257.383542,0.0004,7]
[331257174,1720165842704,-151.0,0.0004,7]
[331257175,1720165842715,-167.593566,0.0004,7]
[331257176,1720165842725,-181.85500254,0.00040303,30]
[331257177,1720165842735,-150.01351092,0.00040693,30]
[331257178,1720165842747,-8823.13575589,0.00041,30]
[331257179,1720165842757,-159.49645922,0.00041149,30]
[331257180,1720165842766,-151.53488588,0.00041233,30]
[331257181,1720165842776,-151.53488588,0.00041521,30]
[331257182,1720165842786,-151.0,0.00041616,120]
[331257183,1720165842795,-150.0,0.00041883,2]
[331257184,1720165842805,-877.0,0.00041883,2]
[331257185,1720165842815,-159.499849,0.00042009,2]
[331257186,1720165842826,-151.53488588,0.00042018,30]
[331257187,1720165842836,-181.85500254,0.00042369,30]
[331257188,1720165842846,-151.0,0.0004263,120]
[331257189,1720165842856,-159.428159,0.00042825,2]
[331257191,1720165842983,-156.25095608,0.00042879,30]
[331257193,1720165842994,-151.53488588,0.00042926,30]
[331257195,1720165843004,-156.25095608,0.00042949,30]
[331257197,1720165843015,-1962.91636673,0.00042999,30]
[331257199,1720165843025,-151.0,0.00043233,120]
[331257201,1720165843034,-151.0,0.00043287,14]
[331257203,1720165843043,-217.625404,0.00043287,14]
[331257204,1720165843055,-151.22207,0.00043287,14]
[331257205,1720165843067,-1355.49823238,0.000434,2]
[331257206,1720165843077,-7773.41575725,0.0004349,5]
[331257207,1720165843087,-10000.0,0.000435,45]
[331257208,1720165843096,-151.0,0.000435,14]
[331257210,1720165843106,-151.0,0.000435,14]
[331257212,1720165843115,-151.0,0.000435,14]
[331257213,1720165843125,-151.0,0.000435,14]
[331257214,1720165843135,-151.0,0.000435,14]
[331257215,1720165843145,-151.0,0.000435,14]
[331257216,1720165843154,-150.01351101,0.00043576,30]
[331257217,1720165843168,-3809.2136136,0.000438,60]
[331257218,1720165843177,-1000.0,0.00044,44]
[331257219,1720165843187,-151.0,0.00044849,120]
[331257220,1720165843198,-151.0,0.00044883,14]
[331257221,1720165843208,-151.0,0.00044883,14]
[331257222,1720165843218,-860.059536,0.00044883,14]
[331257223,1720165843227,-860.059536,0.00044883,14]
[331257224,1720165843236,-783.002453,0.00044883,14]
[331257225,1720165843246,-783.002453,0.00044883,14]
[331257226,1720165843255,-389.484064,0.00044883,14]
[331257227,1720165843264,-389.484064,0.00044883,14]
[331257228,1720165843273,-151.0,0.00044883,14]
[331257229,1720165843283,-151.0,0.00044883,14]
[331257230,1720165843293,-151.0,0.00044883,14]
[331257231,1720165843302,-261.351514,0.00044883,14]
[331257232,1720165843312,-2257.383542,0.00044883,14]
[331257233,1720165843322,-151.0,0.00044883,14]
[331257234,1720165843331,-261.351514,0.00044883,14]
[331257235,1720165843341,-258.893926,0.00044883,14]
[331257236,1720165843350,-2257.383542,0.00044883,14]
[331257237,1720165843360,-877.0,0.00044883,2]
[331257238,1720165843369,-15546.8315145,0.0004499,5]
[331257239,1720165843379,-10000.0,0.00045,50]
[331257240,1720165843388,-59182.13022081,0.00045,120]
[331257241,1720165843398,-151.0,0.00045,14]
[331257243,1720165843411,-151.0,0.00045,14]
[331257245,1720165843420,-5000.0,0.00045,14]
[331257247,1720165843429,-151.661474,0.00045,14]
[331257249,1720165843438,-151.0,0.00045,14]
[331257251,1720165843448,-190.752613,0.00045,14]
[331257253,1720165843457,-190.752613,0.00045,14]
[331257255,1720165843469,-190.752613,0.00045,14]
[331257257,1720165843479,-190.752613,0.00045,14]
[331257259,1720165843489,-151.0,0.00045,14]
[331257261,1720165843499,-151.0,0.00045,14]
[331257263,1720165843509,-151.0,0.00045,14]
[331257265,1720165843518,-151.0,0.00045,14]
[331257267,1720165843528,-151.0,0.00045,14]
[331257269,1720165843537,-152.561443,0.00045,14]
[331257271,1720165843546,-190.98313,0.00045,14]
[331257273,1720165843556,-151.0,0.00045,14]
[331257275,1720165843566,-151.0,0.00045,14]
[331257277,1720165843576,-151.0,0.00045,14]
[331257279,1720165843586,-151.0,0.00045,14]
[331257281,1720165843595,-151.0,0.00045,14]
[331257282,1720165843605,-151.0,0.00045,14]
[331257283,1720165843615,-151.76923,0.00045,14]
[331257284,1720165843625,-193.58254,0.00045,14]
[331257286,1720165843634,-193.58254,0.00045,14]
[331257287,1720165843644,-151.0,0.00045,14]
[331257288,1720165843653,-151.0,0.00045,14]
[331257289,1720165843665,-151.0,0.00045,14]
[331257290,1720165843675,-224.230914,0.00045,14]
[331257291,1720165843684,-224.230914,0.00045,14]
[331257292,1720165843693,-408.924018,0.00045,14]
[331257293,1720165843703,-408.924018,0.00045,14]
[331257294,1720165843713,-151.0,0.00045,14]
[331257295,1720165843722,-154.973785,0.00045,14]
[331257296,1720165843731,-860.059536,0.00045,14]
[331257297,1720165843740,-860.059536,0.00045,14]
[331257298,1720165843750,-783.002453,0.00045,14]
[331257299,1720165843760,-783.002453,0.00045,14]
[331257300,1720165843769,-389.484064,0.00045,14]
[331257301,1720165843779,-389.484064,0.00045,14]
[331257302,1720165843789,-151.0,0.00045,14]
[331257303,1720165843798,-151.0,0.00045,14]
[331257304,1720165843808,-198.733938,0.00045,14]
[331257305,1720165843817,-261.351514,0.00045,14]
[331257306,1720165843827,-2257.383542,0.00045,14]
[331257307,1720165843837,-151.0,0.00045,14]
[331257308,1720165843846,-261.351514,0.00045,14]
[331257309,1720165843856,-2257.383542,0.00045,14]
[331257310,1720165843865,-151.0,0.00045,14]
[331257311,1720165843875,-151.0,0.00045,14]
[331257312,1720165843885,-151.0,0.0004526,120]
[331257313,1720165843894,-244.670338,0.00045494,2]
[331257314,1720165843904,-151.0,0.0004599,14]
[331257315,1720165843916,-23320.2472717,0.0004599,5]
[331257316,1720165843926,-208198.45584594,0.00046,60]
[331257317,1720165843935,-151.0,0.00046,14]
[331257318,1720165843945,-190.752613,0.00046,14]
[331257319,1720165843955,-190.752613,0.00046,14]
[331257320,1720165843966,-151.0,0.00046,14]
[331257321,1720165843977,-151.0,0.00046,14]
[331257322,1720165843987,-151.0,0.00046,14]
[331257323,1720165843997,-151.0,0.00046,14]
[331257324,1720165844007,-151.0,0.00046,14]
[331257325,1720165844017,-151.0,0.00046,14]
[331257326,1720165844027,-151.0,0.00046,14]
[331257327,1720165844036,-193.58254,0.00046,14]
[331257328,1720165844049,-193.58254,0.00046,14]
[331257329,1720165844059,-195.426832,0.00046,14]
[331257330,1720165844069,-151.0,0.00046,14]
[331257331,1720165844079,-224.230914,0.00046,14]
[331257332,1720165844088,-224.230914,0.00046,14]
[331257333,1720165844098,-408.924018,0.00046,14]
[331257334,1720165844107,-408.924018,0.00046,14]
[331257335,1720165844116,-151.0,0.00046,14]
[331257336,1720165844126,-860.059536,0.00046,14]
[331257337,1720165844139,-860.059536,0.00046,14]
[331257338,1720165844149,-783.002453,0.00046,14]
[331257339,1720165844160,-783.002453,0.00046,14]
[331257340,1720165844169,-389.484064,0.00046,14]
[331257341,1720165844178,-389.484064,0.00046,14]
[331257342,1720165844187,-151.0,0.00046,14]
[331257343,1720165844197,-151.0,0.00046,14]
[331257344,1720165844207,-261.351514,0.00046,14]
[331257345,1720165844216,-2257.383542,0.00046,14]
[331257346,1720165844226,-151.0,0.00046,14]
[331257347,1720165844236,-261.351514,0.00046,14]
[331257348,1720165844246,-2257.383542,0.00046,14]
[331257349,1720165844255,-151.0,0.00046,14]
[331257350,1720165844265,-181.85500254,0.00046348,30]
[331257351,1720165844274,-151.0,0.00046466,120]
[331257352,1720165844283,-10000.0,0.000468,55]
[331257353,1720165844293,-167.0,0.00046849,90]
[331257354,1720165844303,-181.85500257,0.00046977,30]
[331257355,1720165844312,-1799.40583263,0.00047,7]
[331257356,1720165844322,-5000.0,0.00047,20]
[331257357,1720165844332,-167.0,0.00047,90]
[331257358,1720165844341,-151.53488588,0.0004754,30]
[331257359,1720165844351,-151.53488588,0.00047801,30]
[331257360,1720165844361,-877.0,0.00047883,2]
[331257361,1720165844371,-151.0,0.0004789,120]
[331257362,1720165844380,-2000.0,0.00047945,120]
[331257363,1720165844389,-4999.91,0.00048,30]
[331257365,1720165844399,-5000.0,0.00048,30]
[331257367,1720165844411,-151.0,0.00048082,120]
[331257369,1720165844421,-14750.92089144,0.00048398,8]
[331257370,1720165844431,-2000.0,0.00048493,120]
[331257372,1720165844441,-35544.27588912,0.00048798,2]
[331257373,1720165844450,-151.0,0.00048798,14]
[331257374,1720165844460,-190.752613,0.00048798,14]
[331257375,1720165844473,-190.752613,0.00048798,14]
[331257376,1720165844483,-151.0,0.00048798,14]
[331257377,1720165844492,-151.0,0.00048798,14]
[331257378,1720165844502,-151.0,0.00048798,14]
[331257379,1720165844511,-151.0,0.00048798,14]
[331257380,1720165844521,-171.948797,0.00048798,14]
[331257381,1720165844531,-151.0,0.00048798,14]
[331257382,1720165844541,-151.0,0.00048798,14]
[331257383,1720165844551,-193.58254,0.00048798,14]
[331257384,1720165844561,-193.58254,0.00048798,14]
[331257385,1720165844571,-151.0,0.00048798,14]
[331257386,1720165844580,-224.230914,0.00048798,14]
[331257387,1720165844590,-224.230914,0.00048798,14]
[331257388,1720165844599,-408.924018,0.00048798,14]
[331257389,1720165844609,-408.924018,0.00048798,14]
[331257390,1720165844619,-151.0,0.00048798,14]
[331257391,1720165844629,-860.059536,0.00048798,14]
[331257392,1720165844638,-860.059536,0.00048798,14]
[331257393,1720165844647,-783.002453,0.00048798,14]
[331257394,1720165844658,-783.002453,0.00048798,14]
[331257395,1720165844667,-389.484064,0.00048798,14]
[331257396,1720165844677,-389.484064,0.00048798,14]
[331257397,1720165844686,-151.0,0.00048798,14]
[331257398,1720165844696,-151.0,0.00048798,14]
[331257399,1720165844706,-261.351514,0.00048798,14]
[331257400,1720165844715,-151.0,0.00048798,14]
[331257401,1720165844724,-2257.383542,0.00048798,14]
[331257402,1720165844734,-261.351514,0.00048798,14]
[331257403,1720165844743,-2257.383542,0.00048798,14]
[331257404,1720165844753,-151.0,0.00048798,14]
[331257405,1720165844762,-599.81861337,0.000488,90]
[331257406,1720165844772,-25504.09220475,0.000488,90]
[331257408,1720165844781,-156.25095608,0.0004887,30]
[331257409,1720165844791,-151.0,0.000489,14]
[331257410,1720165844800,-151.0,0.000489,14]
[331257411,1720165844809,-151.0,0.000489,14]
[331257412,1720165844819,-151.0,0.000489,14]
[331257413,1720165844828,-190.752613,0.000489,14]
[331257414,1720165844838,-190.752613,0.000489,14]
[331257415,1720165844847,-151.0,0.000489,14]
[331257416,1720165844857,-152.675532,0.000489,14]
[331257418,1720165844867,-151.0,0.000489,14]
[331257419,1720165844876,-151.0,0.000489,14]
[331257420,1720165844886,-151.0,0.000489,14]
[331257421,1720165844895,-167.0,0.00048904,90]
[331257422,1720165844906,-151.0,0.0004899,14]
[331257423,1720165844918,-2500.0,0.00048999,120]
[331257424,1720165844927,-857.22695229,0.00048999,120]
[331257425,1720165844938,-362223.64417878,0.00049,120]
[331257426,1720165845099,-2120.35195375,0.00049,120]
[331257427,1720165845110,-760.11824424,0.00049,120]
[331257428,1720165845982,-375.49715664,0.00015288,2]
[331257429,1720165845992,-481.53960977,0.00015288,2]
[331257463,1720166090591,255.06929796,9.999e-05,2]
[331257464,1720166102474,200.95298835,9.999e-05,2]
[331257467,1720166129267,832.63675267,9.999e-05,2]
[331257468,1720166163483,195.40594659,0.0001,2]
[331257469,1720166188442,154.83742071,9.999e-05,2]
[331257471,1720166267478,223.86252991,9.999e-05,2]
[331257472,1720166273472,195.32891593,0.0001,2]
[331257473,1720166532609,195.36743126,0.0001,2]
[331257474,1720166551949,495.88615,9.999e-05,2]
[331257475,1720166739119,-939.29790685,0.0001212,2]
[331257480,1720166848441,-227.899792,0.00013955,2]
[331257481,1720166848465,-1387.1779815,0.00013964,2]
[331257482,1720166848486,-894.10942548,0.00014691,2]
[331257483,1720166848518,-588.6452746,0.00014691,2]
[331257484,1720166848539,-411.3547254,0.00014794,2]
[331257485,1720166850624,-1715.07968801,0.00014794,2]
[331257486,1720166851217,-706.97291892,0.00014899,2]
[331257567,1720167039321,-500.0,0.00014997,2]
[331257568,1720167039331,-334.01314852,0.00014997,2]
[331257569,1720167039342,-300.0,0.00014997,2]
[331257570,1720167039352,-6981.98564229,0.00014998,2]
[331257571,1720167039362,-9615.23092531,0.00014998,2]
[331257572,1720167039371,-2132.69930736,0.00014999,2]
[331257573,1720167039386,-789.859108,0.00014999,2]
[331257574,1720167039396,-3130.40828598,0.00014999,4]
[331257575,1720167039407,-1597.44376902,0.00014999,2]
[331257576,1720167039417,-1634.75488436,0.00014999,2]
[331257577,1720167039429,-1500.0,0.00014999,2]
[331257578,1720167039440,-1104.74204561,0.00015,2]
[331257579,1720167039623,-404.43491923,0.00015,2]
[331257580,1720167039634,-609.04048327,0.00015,2]
[331257581,1720167039647,-2420.76089721,0.00015,2]
[331257582,1720167039657,-154.83742071,0.00015288,2]
[331257583,1720167039667,-415.73107219,0.00016155,2]
[331257584,1720167039679,-2817.76407937,0.00016244,2]
[331257585,1720167039689,-5635.52815874,0.00016245,2]
[331257586,1720167039699,-419.26310918,0.00016253,2]
[331257587,1720167039708,-500.0,0.00016253,2]
[331257588,1720167039719,-500.0,0.00016253,2]
[331257589,1720167039728,-500.0,0.00016253,2]
[331257590,1720167039738,-500.0,0.00016253,2]
[331257591,1720167039748,-500.0,0.00016253,2]
[331257592,1720167039758,-500.0,0.00016253,2]
[331257593,1720167039768,-208.11362826,0.00016253,2]
[331257594,1720167039778,-500.0,0.00016253,2]
[331257595,1720167039787,-500.0,0.00016253,2]
[331257596,1720167039797,-500.0,0.00016253,2]
[331257597,1720167039807,-500.0,0.00016253,2]
[331257598,1720167039820,-500.0,0.00016253,2]
[331257599,1720167039830,-500.0,0.00016253,2]
[331257600,1720167039840,-500.0,0.00016253,2]
[331257601,1720167039851,-500.0,0.00016253,2]
[331257602,1720167039861,-500.0,0.00016253,2]
[331257603,1720167039871,-500.0,0.00016253,2]
[331257604,1720167039881,-500.0,0.00016253,2]
[331257605,1720167039892,-500.0,0.00016253,2]
[331257606,1720167039902,-500.0,0.00016253,2]
[331257607,1720167039912,-500.0,0.00016253,2]
[331257608,1720167039921,-500.0,0.00016253,2]
[331257609,1720167039931,-500.0,0.00016253,2]
[331257610,1720167039941,-500.0,0.00016253,2]
[331257611,1720167039951,-399.08371389,0.00016253,2]
[331257612,1720167039960,-500.0,0.00016253,2]
[331257613,1720167039971,-500.0,0.00016253,2]
[331257614,1720167039980,-500.0,0.00016253,2]
[331257615,1720167039991,-500.0,0.00016253,2]
[331257616,1720167040000,-500.0,0.00016253,2]
[331257617,1720167040010,-500.0,0.00016253,2]
[331257618,1720167040020,-500.0,0.00016253,2]
[331257619,1720167040030,-57214.94712358,0.00016254,2]
[331257620,1720167040040,-30000.0,0.00016255,2]
[331257621,1720167040049,-25469.95151893,0.00016255,2]
[331257622,1720167040059,-17247.80566422,0.00016255,2]
[331257623,1720167040070,-34932.27430829,0.00016255,2]
[331257624,1720167040080,-195.36743126,0.00016255,2]
[331257625,1720167040090,-459.01287071,0.00016255,2]
[331257626,1720167040100,-166.666666,0.00016438,2]
[331257627,1720167040110,-420.0,0.00016497,2]
[331257628,1720167040120,-276.42306753,0.00016722,2]
[331257629,1720167040130,-166.666666,0.00016823,2]
[331257630,1720167040139,-166.666666,0.00017208,2]
[331257631,1720167040149,-166.666666,0.00017592,2]
[331257632,1720167040159,-166.666666,0.00017977,2]
[331257633,1720167040169,-190.9326654,0.00018,2]
[331257634,1720167040179,-587.0,0.00018146,2]
[331257635,1720167040189,-166.666666,0.00018362,2]
[331257636,1720167040199,-812.31944159,0.00019,3]
[331257637,1720167040208,-197.13244658,0.00019,2]
[331257638,1720167040217,-250.0,0.00019041,2]
[331257639,1720167040227,-2817.76407937,0.0001979,2]
[331257640,1720167040236,-52100.07365113,0.000198,2]
[331257641,1720167040245,-823.0,0.00019961,2]
[331257642,1720167040255,-4172.94461587,0.0002,2]
[331257643,1720167040264,-427.95620224,0.0002,2]
[331257644,1720167040273,-1116.9418809,0.0002,2]
[331257645,1720167040283,-154.79103211,0.0002,2]
[331257646,1720167040292,-1724.35538883,0.0002,2]
[331257647,1720167040302,-293.1691109,0.0002,2]
[331257648,1720167040312,-225.53942994,0.0002,2]
[331257649,1720167040322,-763.20815407,0.0002,2]
[331257650,1720167040332,-159.428159,0.00021096,2]
[331257651,1720167040342,-195.73627,0.00021096,2]
[331257652,1720167040352,-1152.0,0.00021957,2]
[331257653,1720167040363,-160.09733992,0.00022,2]
[331257654,1720167040376,-2699.93975309,0.00022942,2]
[331257655,1720167040386,-415.73107219,0.00024466,2]
[331257656,1720167040396,-200.0,0.00024658,15]
[331257657,1720167040406,-189.04078712,0.00025,2]
[331257658,1720167040418,-879.23230837,0.00025501,2]
[331257659,1720167040428,-150.0,0.000265,2]
[331257660,1720167040437,-195.73627,0.00027195,2]
[331257661,1720167040447,-500.0,0.00027397,2]
[331257662,1720167040457,-500.0,0.00027397,2]
[331257663,1720167040467,-449.8749414,0.00027397,2]
[331257664,1720167040477,-620.00007659,0.00027628,2]
[331257665,1720167040487,-2817.76407937,0.0002799,3]
[331257666,1720167040496,-2364.40066571,0.00027999,2]
[331257667,1720167040506,-268.30367969,0.00028,2]
[331257668,1720167040515,-151.53488589,0.00028164,2]
[331257669,1720167040525,-1664.50281301,0.00029831,20]
[331257670,1720167040534,-504.49555993,0.00029831,2]
[331257671,1720167040544,-284.22582068,0.0003,3]
[331257672,1720167040555,-544.88391777,0.0003,4]
[331257673,1720167040567,-898.05648745,0.0003013,22]
[331257674,1720167040578,-159.428159,0.00030753,2]
[331257675,1720167040587,-200.0,0.00032762,120]
[331257676,1720167040597,-415.73107219,0.00032778,2]
[331257677,1720167040606,-195.73627,0.00033295,2]
[331257678,1720167040616,-151.53488589,0.00034042,7]
[331257679,1720167040626,-156.25095608,0.00035388,7]
[331257680,1720167040635,-5506.17,0.00035616,3]
[331257681,1720167040645,-181.85500255,0.00036974,7]
[331257682,1720167040655,-154.80649189,0.000392,10]
[331257683,1720167040665,-195.73627,0.00039394,2]
[331257684,1720167040674,-181.85500256,0.00039614,7]
[331257685,1720167040684,-3990.00210664,0.0003999,4]
[331257686,1720167040693,-151.0,0.0004,120]
[331257687,1720167040703,-151.0,0.0004,120]
[331257688,1720167040712,-154.26185717,0.00040388,30]
[331257689,1720167040722,-159.428159,0.00040411,2]
[331257690,1720167040732,-415.73107219,0.00041089,2]
[331257691,1720167040742,-151.0,0.00041726,120]
[331257692,1720167040752,-154.26185717,0.0004199,30]
[331257693,1720167040761,-277.50069668,0.000425,30]
[331257694,1720167040772,-151.0,0.00042767,120]
[331257695,1720167040782,-494.14797639,0.00042999,4]
[331257696,1720167040792,-151.0,0.00043452,120]
[331257697,1720167040802,-877.0,0.00043862,2]
[331257698,1720167040814,-154.26185717,0.00043923,30]
[331257699,1720167040823,-165.722,0.00043997,2]
[331257700,1720167040833,-151.0,0.00045178,120]
[331257701,1720167040843,-195.73627,0.00045494,2]
[331257702,1720167040852,-151.0,0.00045534,120]
[331257703,1720167040862,-151.5348859,0.0004595,30]
[331257704,1720167040872,-167.0,0.00046849,90]
[331257705,1720167040882,-877.0,0.00046862,2]
[331257706,1720167040891,-151.0,0.00046904,120]
[331257707,1720167040906,-167.0,0.00047,90]
[331257708,1720167040916,-2000.0,0.00047945,120]
[331257709,1720167040926,-1902.06,0.00048,120]
[331257710,1720167040936,-871.92,0.00048,120]
[331257711,1720167040946,-4999.91,0.00048,30]
[331257712,1720167040956,-1503.66411543,0.00048,120]
[331257713,1720167040967,-151.0,0.00048301,120]
[331257714,1720167040978,-2000.0,0.00048493,120]
[331257715,1720167040988,-151.0,0.0004863,120]
[331257716,1720167040998,-373.0,0.000487,26]
[331257717,1720167041008,-200.0,0.00048701,120]
[331257718,1720167041018,-8453.29223811,0.0004879,6]
[331257719,1720167041031,-26103.91081812,0.000488,90]
[331257720,1720167041041,-88888.0,0.000488,5]
[331257721,1720167041051,-749.86671019,0.000489,2]
[331257722,1720167041064,-167.0,0.00048904,90]
[331257723,1720167041075,-2817.76407937,0.0004899,6]
[331257724,1720167041084,-8453.29223811,0.0004899,6]
[331257725,1720167041093,-53157.79797087,0.00049,61]
[331257726,1720167041103,-134895.88562323,0.00049,120]
[331257727,1720167041118,-4684.0,0.00049,30]
[331257728,1720167041127,-1000.0,0.00049,49]
[331257729,1720167041138,-2000.0,0.00049041,120]
[331257730,1720167041148,-153.0,0.00049288,120]
[331257731,1720167041157,-153.0,0.00049288,120]
[331257732,1720167041167,-153.0,0.00049288,120]
[331257733,1720167041177,-153.0,0.00049288,120]
[331257734,1720167041186,-153.0,0.00049288,120]
[331257735,1720167041196,-153.0,0.00049288,120]
[331257736,1720167041205,-153.0,0.00049288,120]
[331257737,1720167041215,-153.0,0.00049288,120]
[331257738,1720167041224,-153.0,0.00049288,120]
[331257739,1720167041233,-153.0,0.00049288,120]
[331257740,1720167041243,-153.0,0.00049288,120]
[331257741,1720167041252,-153.0,0.00049288,120]
[331257742,1720167041261,-153.0,0.00049288,120]
[331257743,1720167041271,-153.0,0.00049288,120]
[331257744,1720167041280,-153.0,0.00049288,120]
[331257745,1720167041289,-153.0,0.00049288,120]
[331257746,1720167041299,-153.0,0.00049288,120]
[331257747,1720167041308,-153.0,0.00049288,120]
[331257748,1720167041320,-153.0,0.00049288,120]
[331257749,1720167041330,-153.0,0.00049288,120]
[331257750,1720167041340,-153.0,0.00049288,120]
[331257751,1720167041349,-153.0,0.00049288,120]
[331257752,1720167041359,-153.0,0.00049288,120]
[331257753,1720167041369,-153.0,0.00049288,120]
[331257754,1720167041383,-153.0,0.00049288,120]
[331257755,1720167041392,-153.0,0.00049288,120]
[331257756,1720167041402,-153.0,0.00049288,120]
[331257757,1720167041411,-153.0,0.00049288,120]
[331257758,1720167041422,-153.0,0.00049288,120]
[331257759,1720167041432,-153.0,0.00049288,120]
[331257760,1720167041442,-153.0,0.00049288,120]
[331257761,1720167041452,-153.0,0.00049288,120]
[331257762,1720167041462,-153.0,0.00049288,120]
[331257763,1720167041472,-153.0,0.00049288,120]
[331257764,1720167041481,-153.0,0.00049288,120]
[331257765,1720167041490,-153.0,0.00049288,120]
[331257766,1720167041499,-153.0,0.00049288,120]
[331257767,1720167041509,-153.0,0.00049288,120]
[331257768,1720167041518,-153.0,0.00049288,120]
[331257769,1720167041527,-153.0,0.00049288,120]